Cogmind - Beta 13 X1 @@@ ROGUE MODE // 2023.10.14 @ 14:10:47 Player: Plexion Result: Destroyed by S-10 Pest with Light Assault Rifle Performance ------------- Evolutions (0) 0 Regions Visited (4) 800 Robots Destroyed (27) 135 Value Destroyed (529) 529 Prototype IDs (23) 460 Alien Tech Used (0) 0 Bonus (324) 324 TOTAL SCORE: 2248 Bonus ------- High Alert Combat Kills 24 Aligned with FarCom 300 Cogmind --------- Core Integrity 0/250 Matter 287/300 Energy 249/250 System Corruption 0% Temperature Cool (0) Movement Treading (240) Ox1 Location -9/Mines Parts ------- > --- POWER (1) -------- Ion Engine > --- PROPULSION (2) --- Light Treads Light Treads > --- UTILITY (2) ------ High-capacity Storage Unit Seismic Detector > --- WEAPON (2) ------- EM Pulse Gun Assault Rifle > --- INVENTORY (20) --- Ion Engine Light Treads Light Treads Improved Light Armor Plating Hacking Suite Hacking Suite Grenade Launcher Grenade Launcher Grenade Launcher Rocket Launcher Rocket Launcher Rocket Launcher Rocket Launcher Hammer Peak State ------------ > --- POWER ------------ Ion Engine > --- PROPULSION ------- Light Treads Light Treads > --- UTILITY ---------- High-capacity Storage Unit Seismic Detector > --- WEAPON ----------- Assault Rifle Light Assault Rifle > --- INVENTORY -------- Ion Engine Light Treads Light Treads Light Treads Hacking Suite Hacking Suite EM Pulse Gun Grenade Launcher Grenade Launcher Grenade Launcher Rocket Launcher Rocket Launcher Rocket Launcher Hammer [Rating: 9] Favorites ----------- Power Ion Engine Engine Ion Engine Propulsion Light Treads Treads Light Treads Utility Seismic Detector Device Seismic Detector Storage High-capacity Storage Unit Weapon Assault Rifle Energy Gun EM Pulse Gun Ballistic Gun Assault Rifle Launcher Grenade Launcher Build | -11 -10 -10 -10 -9 ------- Run | Jun Mat Min Exi Min Slots Evolved . | . . . . . Power . | . . . . . Propulsion . | . . . . . Utility . | . . . . . Weapon . | . . . . . Parts Attached 15 | 6 4 3 1 1 Power 2 | 1 1 . . . Engine 2 | 1 1 . . . Core . | . . . . . Reactor . | . . . . . Propulsion 4 | 2 1 1 . . Treads 4 | 2 1 1 . . Leg . | . . . . . Wheel . | . . . . . Hover . | . . . . . Flight . | . . . . . Utility 3 | 1 2 . . . Device 1 | . 1 . . . Storage 2 | 1 1 . . . Processor . | . . . . . Hackware . | . . . . . Protection . | . . . . . Artifact . | . . . . . Weapon 6 | 2 . 2 1 1 Energy Gun 2 | . . 1 . 1 Energy Cannon . | . . . . . Ballistic Gun 3 | 2 . . 1 . Ballistic Cannon . | . . . . . Launcher 1 | . . 1 . . Special Weapon . | . . . . . Impact Weapon . | . . . . . Slashing Weapon . | . . . . . Piercing Weapon . | . . . . . Special Melee Weapon . | . . . . . Unidentified Prototypes . | . . . . . Parts Lost 2 | . . 2 . . Power . | . . . . . Propulsion 1 | . . 1 . . Utility . | . . . . . Weapon 1 | . . 1 . . Highest Loss Streak 1 | . . 1 . . To Critical Strikes . | . . . . . Average Slot Usage (%) 90 | . 94 88 85 85 Engine 14 | . 14 14 14 14 Treads 27 | . 28 27 28 28 Device 11 | . 8 14 14 14 Storage 14 | . 14 14 14 14 Ballistic Gun 18 | . 28 6 14 14 Launcher 2 | . . 11 . . Naked Turns . | . . . . . Heaviest Build 49 | 13 49 49 48 48 Greatest Support 40 | 40 40 40 40 40 Greatest Overweight (x) 1 | . 1 1 1 1 Average Overweight (x) . | . . 1 1 1 Largest Inventory Capacity 20 | 8 20 20 20 20 Average Capacity 17 | 7 15 20 20 20 Most Carried 15 | 2 15 15 15 15 Average Carried 10 | 1 7 14 15 14 Final Capacity 20 | 8 20 20 20 20 Final Carried 15 | 2 15 15 15 14 Class Distribution -------------------- 100% | Mutant Dominant Class ---------------- Mutant | -10/Materials Mutant | -10/Mines Mutant | -10/Exiles Mutant | -9/Mines Resources | -11 -10 -10 -10 -9 ----------- Run | Jun Mat Min Exi Min Matter Collected 670 | 255 293 106 . 16 Remotely . | . . . . . Salvage Created 718 | . 659 39 . 20 Parts 55 | . 51 1 . 3 Haulers Intercepted 2 | . 2 . . . Recyclers Shooed . | . . . . . Parts Field Recycled . | . . . . . Retrieved Matter . | . . . . . Parts Self-Destructed . | . . . . . Prevented . | . . . . . Kills | -11 -10 -10 -10 -9 ------- Run | Jun Mat Min Exi Min Combat Hostiles Destroyed 22 | . 16 5 . 1 Guns 18 | . 16 1 . 1 AOE 4 | . . 4 . . Classes Destroyed 8 | . 7 1 . . Worker 1 | . 1 . . . Hauler 2 | . 2 . . . Mechanic 1 | . 1 . . . Operator 2 | . 2 . . . Watcher 1 | . 1 . . . Swarmer 10 | . 6 3 . 1 Grunt 10 | . 10 . . . Assembled 2 | . . 2 . . Best Kill Streak 7 | . 7 3 . 1 Combat Bots Only 7 | . 7 3 . 1 Max Kills in Single Turn 2 | . 2 2 . 1 Gunslinging 1 | . 1 . . . Exploded 2 | . . 2 . . Melee . | . . . . . Uniques/NPCs Destroyed . | . . . . . Combat | -11 -10 -10 -10 -9 -------- Run | Jun Mat Min Exi Min Damage Taken 906 | . 394 329 122 61 Core 252 | . 77 119 28 28 Absorbed by Shields . | . . . . . Regen/Repaired (Parts) 95 | . 95 . . . Core Remaining (%) 100 | 100 . . . . Volleys Fired 76 | . 62 11 2 1 Largest 2 | . 2 2 1 2 Hottest 60 | . 40 40 20 60 Shots Fired 143 | . 124 15 2 2 Gun 136 | . 124 8 2 2 Cannon . | . . . . . Launcher 7 | . . 7 . . Special . | . . . . . Kinetic 135 | . 124 8 2 1 Thermal . | . . . . . Explosive 7 | . . 7 . . Electromagnetic 1 | . . . . 1 Robot Hit Streak 22 | . 22 4 . 1 Robot Miss Streak 2 | . 2 1 . 1 Penetration Max . | . . . . . Secondary Targets 6 | . 6 . . . Max Gunslinging Chain 1 | . 1 . . . Shots Hit Robots 103 | . 95 7 . 1 Core Hits 51 | . 42 8 . 1 Critical Kills . | . . . . . Critical Parts Destroyed 1 | . 1 . . . Critical Strikes 1 | . 1 . . . Destroy 1 | . 1 . . . Melee Attacks . | . . . . . Impact . | . . . . . Slashing . | . . . . . Piercing . | . . . . . Sneak Attacks . | . . . . . Combat Hostiles . | . . . . . Follow-up Attacks . | . . . . . Damage Inflicted 1364 | . 1064 288 . 12 Guns 1108 | . 1048 48 . 12 Cannons . | . . . . . Explosions 237 | . . 237 . . Melee . | . . . . . Ramming 19 | . 16 3 . . Kinetic 1096 | . 1048 48 . . Thermal . | . . . . . Explosive 237 | . . 237 . . Electromagnetic 12 | . . . . 12 Impact . | . . . . . Slashing . | . . . . . Piercing . | . . . . . Highest Corruption . | . . . . . Average Corruption . | . . . . . Corruption Purged . | . . . . . Corruption Blocked . | . . . . . Overload Shots . | . . . . . Overflow Damage . | . . . . . Projectiles . | . . . . . Explosions . | . . . . . Melee . | . . . . . Knockbacks . | . . . . . Impact . | . . . . . Kinetic . | . . . . . Secondary . | . . . . . Self-Inflicted Damage 90 | . . 90 . . Shots 3 | . . 3 . . Rammed 3 | . 2 1 . . Targets Rammed 3 | . 2 1 . . Kicked . | . . . . . Crushed . | . . . . . Highest Temperature 12 | . 12 . 2 . Average Temperature 6 | . 7 . 2 . Received Heat Transfer 222 | . 162 . 60 . Siege Activations . | . . . . . Robots Corrupted . | . . . . . Combat Hostiles . | . . . . . Parts Fried . | . . . . . Impact Corruptions . | . . . . . Robots Melted . | . . . . . Combat Hostiles . | . . . . . Parts Melted . | . . . . . Heat Transferred . | . . . . . Parts Sabotaged . | . . . . . Parts Stolen . | . . . . . Parts Stripped . | . . . . . Power Chain Reactions . | . . . . . Missiles Intercepted . | . . . . . Alert | -11 -10 -10 -10 -9 ------- Run | Jun Mat Min Exi Min Peak Influence 520 | . 520 194 . 30 Initial 94 | . . 94 . . Average 196 | . 285 73 . 2 Maximum Alert Level 2 | . 2 . . . Low Security (%) 47 | 100 13 100 . 100 Level 1 44 | . 73 . . . Level 2 7 | . 12 . . . Level 3 . | . . . . . Level 4 . | . . . . . Level 5 . | . . . . . High Security . | . . . . . Max Security . | . . . . . Squads Dispatched 5 | . 5 . . . Investigation 3 | . 3 . . . Extermination . | . . . . . Reinforcement 2 | . 2 . . . Assault . | . . . . . Garrison . | . . . . . Intercept . | . . . . . Searches Triggered . | . . . . . Construction Impeded . | . . . . . Haulers Reinforced . | . . . . . Active Scanning Responses . | . . . . . Cargo Convoy Interrupts . | . . . . . Stealth | -11 -10 -10 -10 -9 --------- Run | Jun Mat Min Exi Min Distress Signals 3 | . 3 . . . Communications Jammed . | . . . . . Distress Signals . | . . . . . Times Spotted 43 | . 27 5 7 4 Peak Tracking Total 9 | . 7 3 9 4 Tactical Retreats . | . . . . . Traps | -11 -10 -10 -10 -9 ------- Run | Jun Mat Min Exi Min Traps Triggered 1 | . 1 . . . Indirectly . | . . . . . Trap Hack Attempts . | . . . . . Triggered . | . . . . . Disarmed . | . . . . . Reprogrammed . | . . . . . Reused . | . . . . . Traps Extracted . | . . . . . Installed . | . . . . . Triggered . | . . . . . Machines | -11 -10 -10 -10 -9 ---------- Run | Jun Mat Min Exi Min Machines Disabled 2 | . . 1 1 . Max in Single Turn 1 | . . 1 1 . Machines Repaired . | . . . . . Machines Sabotaged . | . . . . . Overloaded Fab Kills . | . . . . . Hacking | -11 -10 -10 -10 -9 --------- Run | Jun Mat Min Exi Min Machines Accessed 7 | . 5 . 2 . Terminals 2 | . 2 . . . Fabricators . | . . . . . Repair Stations 1 | . 1 . . . Recycling Units 2 | . 2 . . . Scanalyzers . | . . . . . Garrison Access . | . . . . . Total Hacks 11 | . 9 . 2 . Successful 7 | . 5 . 2 . Failed 4 | . 4 . . . Catastrophic . | . . . . . Database Lockouts . | . . . . . Manual 8 | . 7 . 1 . Terminals 5 | . 5 . . . Fabricators . | . . . . . Repair Stations 2 | . 2 . . . Recycling Units 2 | . 2 . . . Scanalyzers . | . . . . . Garrison Access . | . . . . . Terminal Hacks 3 | . 1 . 2 . Record 1 | . . . 1 . Robot Analysis 1 | . 1 . . . Derelict Proto ID Bank 1 | . . . 1 . Fabricator Hacks . | . . . . . Repair Station Hacks 2 | . 2 . . . Scan Component 1 | . 1 . . . Repair 1 | . 1 . . . Recycling Unit Hacks . | . . . . . Scanalyzer . | . . . . . Garrison Access Hacks . | . . . . . Unauthorized Hacks 2 | . 2 . . . Terminals . | . . . . . Fabricators . | . . . . . Repair Stations . | . . . . . Recycling Units 2 | . 2 . . . Tunnel 2 | . 2 . . . Scanalyzers . | . . . . . Garrison Access . | . . . . . Data Cores Recovered . | . . . . . Used . | . . . . . Hacking Detections 2 | . 2 . . . Full Trace Events . | . . . . . Feedback Events . | . . . . . Feedback Blocked . | . . . . . Robot Schematics Acquired . | . . . . . Robots Built . | . . . . . Authchips . | . . . . . Time . | . . . . . Total Robot Build Rating . | . . . . . Part Schematics Acquired . | . . . . . Parts Built . | . . . . . Authchips . | . . . . . Time . | . . . . . Total Part Build Rating . | . . . . . Parts Repaired 1 | . 1 . . . Time 26 | . 26 . . . Parts Recycled . | . . . . . Recycled Matter . | . . . . . Retrieved Matter . | . . . . . Retrieved Components . | . . . . . Parts Scanalyzed . | . . . . . Part Schematics Acquired . | . . . . . Parts Damaged . | . . . . . Bothacking | -11 -10 -10 -10 -9 ------------ Run | Jun Mat Min Exi Min Used RIF Installer . | . . . . . Robots Hacked . | . . . . . Non-combat . | . . . . . Combat . | . . . . . Robot Hacks Applied . | . . . . . Relay Couplers Released . | . . . . . Fabnet Peak Effective % . | . . . . . Robots Rewired . | . . . . . Allies Hacked . | . . . . . Hacks Repelled . | . . . . . Allies | -11 -10 -10 -10 -9 -------- Run | Jun Mat Min Exi Min Total Allies 3 | . . 3 . . Largest Group 3 | . . 3 3 . Highest-Rated Group 40 | . . 40 40 . Highest-Rated Ally 16 | . . 16 16 . Total Orders . | . . . . . Ally Attacks 6 | . . . 6 . Total Damage 40 | . . . 40 . Kills . | . . . . . Allies Corrupted . | . . . . . Allies Melted . | . . . . . Intel | -11 -10 -10 -10 -9 ------- Run | Jun Mat Min Exi Min Robot Analysis Total 1 | . 1 . . . Derelict Logs Recovered 1 | . . 1 . . Drone Launches . | . . . . . Drone Recoveries . | . . . . . Exploration | -11 -10 -10 -10 -9 ------------- Run | Jun Mat Min Exi Min Turns Passed 2565 | 96 1173 623 628 45 Spaces Moved 1022 | 57 446 242 260 17 Core 5 | 5 . . . . Treads 1017 | 52 446 242 260 17 Legs . | . . . . . Wheels . | . . . . . Hover . | . . . . . Flight . | . . . . . Fastest Speed 50 | 50 160 240 240 240 Average Speed 220 | 150 207 240 240 240 Slowest Speed 240 | 160 240 240 240 240 Overloaded Moves . | . . . . . Propulsion Burnouts . | . . . . . Robots Hopped . | . . . . . Cave-ins Triggered . | . . . . . Exploration Rate (%) 43 | 4 79 53 69 11 Regions Visited 4 Branch Regions 3 Pre-discovered Areas 5 | . 2 2 1 . Known Exits Taken . | . . . . . Unknown Exits Taken 4 | 1 1 1 1 . Scrap Searched 2 | . . 1 . 1 Spaces Dug 22 | . . 22 . . Terrain Destroyed 49 | . . 49 . . Melee . | . . . . . Projectile . | . . . . . AOE 49 | . . 49 . . Terrain Rammed . | . . . . . Walls Destroyed . | . . . . . Machines Disabled . | . . . . . Actions | -11 -10 -10 -10 -9 --------- Run | Jun Mat Min Exi Min Total 1195 | 64 581 269 262 19 Wait 65 | . 53 12 . . Move 1018 | 56 445 241 259 17 Hop . | . . . . . Pick Up 16 | 2 13 1 . . Fast Attach 7 | 6 1 . . . Attach 2 | . . 1 . 1 Detach . | . . . . . Swap 6 | . 3 2 1 . Drop 2 | . 2 . . . Fire 76 | . 62 11 2 1 Melee . | . . . . . Ram . | . . . . . Kick . | . . . . . Crush 3 | . 2 1 . . Escape Stasis . | . . . . . Rewire . | . . . . . Trap . | . . . . . Miscellaneous . | . . . . . Route ------- -11/Junkyard -10/Materials (discovered 4 exits: [*Mat x2] / [*Min x2]) -10/Mines (discovered 2 exits: [*Mat] / *Exi) -10/Exiles (discovered 2 exits: [*Min x2]) -9/Mines History --------- Turn | Location | Event 3 | -11/Junkyard | Discovered new exit (range 16) 97 | -11/Junkyard | Entered Materials 307 | -10/Materials | Build established: Mutant 317 | -10/Materials | Destroyed 7 combat bots 506 | -10/Materials | Discovered new exit (range 9) 573 | -10/Materials | Discovered new exit (range 8) 846 | -10/Materials | Repaired Lgt. Treads 884 | -10/Materials | Discovered new exit (range 7) 1053 | -10/Materials | Discovered new exit (range 12) 1270 | -10/Materials | Entered Mines 1286 | -10/Mines | Assembled infested the area 1342 | -10/Mines | Core integrity fell below 50% 1381 | -10/Mines | Learned location of Zion (-6) 1560 | -10/Mines | Learned location of Storage (-7) 1788 | -10/Mines | Assisted by bots powering up and referring to "LRC-V3" 1836 | -10/Mines | Discovered new exit (range 8) 1884 | -10/Mines | Deemed a non-threat by the Exiles lab entrance 1884 | -10/Mines | Discovered new exit (range 5) 1893 | -10/Mines | Entered Exiles 1893 | -10/Exiles | Accompanied by 3 allies 1926 | -10/Exiles | Discovered new exit (range 15) 1960 | -10/Exiles | Met 8R-AWN 1991 | -10/Exiles | Met EX-HEX 2085 | -10/Exiles | Met EX-DEC 2181 | -10/Exiles | Met EX-BIN 2214 | -10/Exiles | Aligned with FarCom system 2217 | -10/Exiles | Given EX-Vault access code 2279 | -10/Exiles | Opened EX-Vault 2329 | -10/Exiles | Warned to stay clear of 0b10 Research branches 2467 | -10/Exiles | Attacked by the Exiles 2501 | -10/Exiles | Discovered new exit (range 10) 2518 | -10/Exiles | Core integrity fell below 20% 2521 | -10/Exiles | Entered Mines 2566 | -9/Mines | Destroyed by S-10 Pest with Light Assault Rifle Last Messages --------------- network. EX-BIN: And don't even think about spreading that code around. We're gonna change it right after you leave. Most certainly not to something like 1234 which I did last time as a little joke and some thief managed to sneak in here and steal a few of HEX's prototypes. 02467_ EXILES: Hostile robot within lab perimeter. Defensive protocols time, folks! 02496_ Trooper 1a destroyed. 02501_ Trooper 1b destroyed. 02501_ EXIT=FOUND 02502_ Mercenary 1a destroyed. LOCATION=UNKNOWN GOAL=ESCAPE 02531_ Searching scrap... 02531_ Found Huge Storage Unit. 02531_ Found Hpw. Tractor Beam. 02531_ Found Shield Generator. 02531_ Found 28 Matter. 02532_ Acquired 16 matter. 02563_ S-10 Pest destroyed. Map ----- +----------------------------------------------------+ | ??????????????????????????????????? | | ??????????????????????????????????? | | ??????????????????????????????????? | | ??????????????????????????????????? | | ??????????????????????????????????? | | ??????????????????????????????????? | | ??????????????????????????????????? | | ??????????????????????????????????? | | ??????????????????????????????????? | | ??????????????????????????????????? | | ???????? ??????????????????????? | | ??????? ??????????????????????? | | ??????? ??????????????????????? | | ???????? #?????????????????????? | | ???????? ##????????????????????? | | ???????? ##???????????????????? | | ???????? ##??????????????????? | | ???????? ##?????????????????? | | ????????# ##????????????????? | | ???????## ##???????????????? | | ??????## s #???????????????? | | ?????## =%s ????????????????? | | ?????# s ??????????????????? | | ?????# #???????????????????? | | ?????# ?????????????????????? | | ?????# @#??????????????????????? | | ?????## #??????????????????????? | | ??????### ##### #????????????????? | | ????????# #????????????????? | | ????????# #######????????????????? | | ??#####?# ###????????????????????? | | ??# ###! ##???????????????????? | | ??# ##!%! #???????????????????? | | ???# #???????????????????? | | ???# ##???????????????????? | | ???# ##????????????????????? | | ??# ##?????????????????????? | | ??# #####??????????????????????? | | ??# ##??????????????????????????? | | ??#####???????????????????????????? | | ??????????????????????????????????? | | ??????????????????????????????????? | | ??????????????????????????????????? | | ??????????????????????????????????? | | ??????????????????????????????????? | | ??????????????????????????????????? | | ??????????????????????????????????? | | ??????????????????????????????????? | | ??????????????????????????????????? | | ??????????????????????????????????? | +----------------------------------------------------+ Best States ------------- Heat Dissipation 25 Energy Generation 10 Energy Capacity 250 Matter Stores 300 Matter Capacity 300 Sight Range 16 Terrain Scan Density 10 Evasion (%) 40 Recoil Reduction 2 Item Schematics ----------------- None Robot Schematics ------------------ None Fabricated ------------ Nothing Alien Tech Used ----------------- None Achievements -------------- None Challenges ------------ None Game ------ Seed NetworkFireInitializer Manual? 0 Play Time 00:07:54 Cumulative 440.5 hours Start 2023.10.14 @ 14:03:00 End 2023.10.14 @ 14:10:47 Sessions 1 Manual Loads 0 Difficulty Rogue Special Mode None Game No. 516 Rogue 429 Adventurer 87 Explorer 0 Win Type - Total 24 Types 8/0/13/1/1/0/1/0/0 Lore% 86 Gallery% 91 Achievement% 75 Wizard Run 0 Options --------- ASCII 0 Keyboard 1 Movement Numpad Keybinds 0 Fullscreen 1 Font 18/SmallcapsGlow Map View 76x50 Tactical HUD 1 Map Filters NONE Filters NONE Steam 1 RUN: c420f6cc-38e9-4544-bc1c-65ce08ce9814